fUST/lending_fUST_20260121
["ID","MTS","AMOUNT","RATE_DAILY","PERIOD"]
[402904994,1768971046482,-2862.58748994,0.00019,2]
[402904995,1768971046494,-8146.14192212,0.00019,2]
[402904996,1768971046505,-2714.48853827,0.00019,2]
[402904997,1768971046517,-438.95640779,0.00019,2]
[402904998,1768971046993,-250.0,0.00016617,2]
[402904999,1768971047007,-152.91632012,0.00016617,2]
[402905000,1768971047023,-478.75725327,0.00017713,2]
[402905001,1768971047038,-496.47127164,0.00018261,2]
[402905002,1768971047053,-514.84070869,0.00018809,2]
[402905003,1768971047069,-1607.01444624,0.00019,2]
[402905004,1768971047785,-3180.90906067,0.00019,2]
[402905005,1768971047804,-3956.71692712,0.00019,2]
[402905006,1768971047821,-8521.9031948,0.00019,2]
[402905007,1768971047843,-755.35022984,0.00019,2]
[402905009,1768971947149,-214.5796323,0.00012878,2]
[402905011,1768972037434,-308.82265019,0.00012878,2]
[402905012,1768972147086,-5000.0,0.00012749,2]
[402905013,1768972147106,-239.42307076,0.00012943,2]
[402905014,1768972147125,-300.0,0.00013008,2]
[402905015,1768972147145,-1200.0,0.00013008,2]
[402905016,1768972147165,-300.0,0.00013008,2]
[402905017,1768972147186,-300.0,0.00013008,2]
[402905018,1768972147205,-500.0,0.00013009,2]
[402905019,1768972147224,-604.0,0.00013009,2]
[402905020,1768972147244,-500.0,0.00013009,2]
[402905021,1768972147263,-500.0,0.00013009,2]
[402905022,1768972147281,-500.0,0.00013009,2]
[402905023,1768972147302,-500.0,0.00013009,2]
[402905024,1768972147325,-500.0,0.00013009,2]
[402905025,1768972147343,-515.43226124,0.00013273,2]
[402905026,1768972147362,-500.0,0.00013273,2]
[402905027,1768972147381,-500.0,0.00013273,2]
[402905028,1768972147399,-509.41771622,0.00013273,2]
[402905029,1768972147419,-500.0,0.00013699,2]
[402905030,1768972147438,-500.0,0.00013699,2]
[402905031,1768972147458,-503.70323317,0.00014247,2]
[402905032,1768972147478,-1000.0,0.00014247,2]
[402905033,1768972147498,-420.0,0.00014265,2]
[402905034,1768972147518,-1029.75662198,0.00014795,2]
[402905035,1768972147538,-179.60823928,0.000149,2]
[402905036,1768972147557,-179.60823928,0.000149,2]
[402905037,1768972147578,-282.51922349,0.00014943,2]
[402905038,1768972147612,-587.0,0.00015644,2]
[402905039,1768972147638,-500.0,0.00015944,2]
[402905040,1768972147660,-229.08497333,0.00015944,2]
[402905041,1768972147683,-500.0,0.00015944,2]
[402905042,1768972147703,-500.0,0.00015944,2]
[402905043,1768972147725,-500.0,0.00015944,2]
[402905044,1768972147748,-593.0333113,0.00015944,2]
[402905045,1768972147771,-500.0,0.00015944,2]
[402905046,1768972147794,-189.87157589,0.00015944,2]
[402905047,1768972147816,-500.0,0.00015944,2]
[402905048,1768972147840,-500.0,0.00015944,2]
[402905049,1768972147862,-495.0098353,0.00015944,2]
[402905050,1768972147882,-270.94992946,0.00015944,2]
[402905051,1768972147909,-500.0,0.00015944,2]
[402905052,1768972147932,-500.0,0.00015944,2]
[402905053,1768972147954,-500.0,0.00015944,2]
[402905054,1768972147976,-500.0,0.00015944,2]
[402905055,1768972147998,-500.0,0.00015944,2]
[402905056,1768972148020,-500.0,0.00015944,2]
[402905057,1768972148043,-500.0,0.00015944,2]
[402905058,1768972148064,-500.0,0.00015944,2]
[402905059,1768972148087,-500.0,0.00015944,2]
[402905060,1768972148108,-500.0,0.00015944,2]
[402905061,1768972148129,-25.34879111,0.00015944,2]
[402905112,1768972232565,-504.70717742,0.00013273,2]
[402905114,1768972232574,-158.79327662,0.00013699,2]
[402905115,1768972232584,-300.0,0.00014977,2]
[402905117,1768972232593,-38.81523321,0.00015785,2]
[402905136,1768972238743,-4437.7824843,0.00015785,2]
[402905137,1768972238753,-3099.96766045,0.000159,2]
[402905138,1768972238762,-300.0,0.00015948,2]
[402905139,1768972238772,-5000.0,0.00015949,2]
[402905140,1768972238782,-503.84505778,0.00015949,2]
[402905141,1768972238792,-355.44668788,0.00015949,2]
[402905142,1768972238801,-301.91712734,0.00015949,2]
[402905143,1768972238810,-343.67036792,0.00015949,2]
[402905144,1768972238820,-443.8899817,0.00015949,2]
[402905145,1768972238829,-500.0,0.00015949,2]
[402905146,1768972238838,-174.74512276,0.00015949,2]
[402905147,1768972238850,-5003.90682887,0.0001595,2]
[402905148,1768972238872,-2650.0,0.0001595,2]
[402905149,1768972238895,-796.76106307,0.0001595,2]
[402905160,1768972243769,-1539.47300136,0.0001595,2]
[402905162,1768972243873,-1676.3322192,0.0001595,2]
[402905163,1768972243926,-45221.93860834,0.0001595,2]
[402905175,1768972246706,-64708.61118945,0.0001595,2]
[402905176,1768972246906,-2226.27428986,0.0001595,2]
[402905177,1768972481243,10000.01,8.876e-05,2]
[402905178,1768972481264,10000.01,8.876e-05,2]
[402905179,1768972481284,10000.01,8.876e-05,2]
[402905180,1768972481304,10000.01,8.876e-05,2]
[402905181,1768972481324,10000.01,8.876e-05,2]
[402905182,1768972481344,10000.01,8.876e-05,2]
[402905183,1768972481366,1230.929336,8.876e-05,2]
[402905184,1768972513235,150.0,7.683e-05,2]
[402905185,1768972513638,150.0,8.048e-05,2]
[402905186,1768972514095,150.0,8.414e-05,2]
[402905187,1768972514677,161.8,8.78e-05,2]
[402905188,1768972588398,150.0,7.664e-05,2]
[402905189,1768972588796,150.0,8.029e-05,2]
[402905190,1768972589185,150.0,8.394e-05,2]
[402905191,1768972589584,150.0,8.759e-05,2]
[402905193,1768972662260,150.0,7.617e-05,2]
[402905194,1768972663165,150.0,7.98e-05,2]
[402905195,1768972663594,150.0,8.343e-05,2]
[402905196,1768972663986,150.0,8.706e-05,2]
[402905197,1768972689113,5000.0,8.876e-05,2]
[402905198,1768972697191,1957.280664,8.876e-05,2]
[402905199,1768972697211,3042.719336,8.876e-05,2]
[402905200,1768972712691,5000.0,8.876e-05,2]
[402905201,1768972720457,1957.290664,8.876e-05,2]
[402905202,1768972720478,3042.709336,8.876e-05,2]
[402905203,1768972735832,150.0,7.59e-05,2]
[402905204,1768972735878,5000.0,8.876e-05,2]
[402905205,1768972736223,183.78,7.951e-05,2]
[402905206,1768972736608,275.67,8.313e-05,2]
[402905207,1768972737033,367.56,8.674e-05,2]
[402905210,1768972758362,980.290664,8.876e-05,2]
[402905211,1768972758385,4019.709336,8.876e-05,2]
[402905218,1768972815127,150.0,7.561e-05,2]
[402905219,1768972815539,158.91,7.921e-05,2]
[402905220,1768972815960,238.37,8.281e-05,2]
[402905221,1768972816374,317.82,8.641e-05,2]
[402905223,1768972824148,5000.0,8.876e-05,2]
[402905224,1768972860862,115.200664,8.876e-05,2]
[402905225,1768972860886,4884.799336,8.876e-05,2]
[402905226,1768972869376,2714.17919057,8.876e-05,2]
[402905227,1768972885770,2401.03147343,8.876e-05,2]
[402905228,1768972885793,2598.96852657,8.876e-05,2]
[402905229,1768972892106,150.0,7.539e-05,2]
[402905230,1768972893057,150.0,7.898e-05,2]
[402905231,1768972893215,211.22,8.257e-05,2]
[402905232,1768972893350,281.63,8.616e-05,2]
[402905233,1768972910109,5000.0,8.876e-05,2]
[402905234,1768972932370,1608.19147343,8.876e-05,2]
[402905235,1768972932393,3391.80852657,8.876e-05,2]
[402905238,1768972956582,5000.0,8.876e-05,2]
[402905239,1768972968649,150.0,7.545e-05,2]
[402905240,1768972969097,150.0,7.904e-05,2]
[402905241,1768972969496,187.3,8.264e-05,2]
[402905242,1768972970127,249.73,8.623e-05,2]
[402905243,1768972979737,871.17147343,8.876e-05,2]
[402905244,1768972979759,4128.82852657,8.876e-05,2]
[402905245,1768973001330,5000.0,8.876e-05,2]
[402905246,1768973023796,871.18147343,8.876e-05,2]
[402905247,1768973023817,4128.81852657,8.876e-05,2]
[402905248,1768973036786,112711.97940678,0.000155,120]
[402905249,1768973044401,150.0,7.549e-05,2]
[402905250,1768973044848,150.0,7.908e-05,2]
[402905251,1768973045426,159.16,8.268e-05,2]
[402905252,1768973045642,212.21,8.627e-05,2]
[402905253,1768973076690,5000.0,8.876e-05,2]
[402905254,1768973098661,199.82147343,8.876e-05,2]
[402905255,1768973098681,4800.17852657,8.876e-05,2]
[402905256,1768973116392,150.0,7.548e-05,2]
[402905257,1768973116831,150.0,7.908e-05,2]
[402905258,1768973117442,150.0,8.267e-05,2]
[402905259,1768973117863,186.28,8.627e-05,2]
[402905260,1768973121123,4563.55147343,8.876e-05,2]
[402905261,1768973121147,436.44852657,8.876e-05,2]
[402905262,1768973143704,2311.78,8.876e-05,2]
[402905272,1768973189998,150.0,8.113e-05,2]
[402905273,1768973190390,150.0,8.5e-05,2]
[402905275,1768973245139,5000.0,8.876e-05,2]
[402905276,1768973246188,-150.0,8.886e-05,2]
[402905277,1768973246209,-228.98422487,9.094e-05,2]
[402905278,1768973246232,-174.51825075,9.272e-05,2]
[402905279,1768973265895,150.0,7.567e-05,2]
[402905280,1768973271030,150.0,7.928e-05,2]
[402905281,1768973271487,150.0,8.288e-05,2]
[402905282,1768973271892,159.23,8.648e-05,2]
[402905287,1768973345035,150.0,7.615e-05,2]
[402905288,1768973345147,-5000.0,9.087e-05,2]
[402905289,1768973345169,-300.0,9.178e-05,2]
[402905290,1768973345189,-1164.29170617,9.179e-05,2]
[402905291,1768973345461,150.0,7.977e-05,2]
[402905292,1768973345972,150.0,8.34e-05,2]
[402905293,1768973346378,150.0,8.702e-05,2]
[402905294,1768973360194,-5000.0,8.974e-05,2]
[402905295,1768973360216,-160.27,9.065e-05,2]
[402905296,1768973360236,-3835.70829383,9.179e-05,2]
[402905297,1768973360258,-224.40454037,9.226e-05,2]
[402905298,1768973360283,-192.32,9.428e-05,2]
[402905299,1768973360308,-154.89629276,9.79e-05,2]
[402905300,1768973371095,-69.48370724,9.79e-05,2]
[402905301,1768973371116,-420.0,0.00010096,2]
[402905302,1768973371139,-256.43,0.00010153,2]
[402905303,1768973371160,-288.48,0.00010515,2]
[402905304,1768973371180,-250.0,0.00010604,2]
[402905305,1768973371200,-16163.73704799,0.00010701,2]
[402905306,1768973416090,150.0,7.593e-05,2]
[402905307,1768973417033,150.0,7.955e-05,2]
[402905308,1768973417451,150.0,8.317e-05,2]
[402905309,1768973417886,150.0,8.678e-05,2]
[402905324,1768973431992,-150.0,9.04e-05,2]
[402905325,1768973432001,-5000.0,0.00010594,2]
[402905326,1768973432011,-300.0,0.000107,2]
[402905327,1768973432020,-549.0,0.000107,2]
[402905328,1768973432030,-13442.7783054,0.00010701,2]
[402905329,1768973432039,-264.79735764,0.00011226,2]
[402905330,1768973432048,-305.19017491,0.00013226,2]
[402905331,1768973432058,-1000.0,0.00013699,2]
[402905332,1768973432067,-352.890694,0.00013699,2]
[402905333,1768973432076,-500.0,0.00013699,2]
[402905334,1768973432085,-250.74929506,0.00013706,2]
[402905335,1768973432094,-808.7811,0.00014247,2]
[402905336,1768973432104,-356.735874,0.00015068,2]
[402905337,1768973432113,-345.58299217,0.00015226,2]
[402905338,1768973432122,-413.33911439,0.000154,2]
[402905339,1768973432131,-206.66955717,0.000154,2]
[402905340,1768973432141,-4124.56936822,0.00015763,2]
[402905341,1768973432150,-5000.0,0.00015849,2]
[402905342,1768973432159,-422.7906671,0.00015849,2]
[402905343,1768973432169,-305.07493699,0.00015849,2]
[402905344,1768973432178,-134973.78164483,0.0001585,2]
[402905445,1768973446806,-5000.0,0.00012961,2]
[402905446,1768973446815,-500.0,0.00013092,2]
[402905447,1768973446826,-500.0,0.00013092,2]
[402905448,1768973446836,-500.0,0.00013092,2]
[402905449,1768973446846,-500.0,0.00013092,2]
[402905450,1768973446855,-595.03944964,0.00013092,2]
[402905451,1768973446865,-500.0,0.00013092,2]
[402905452,1768973446874,-515.69885044,0.00013092,2]
[402905453,1768973446885,-440.92895351,0.00013092,2]
[402905454,1768973446896,-219.75750123,0.00015849,2]
[402905455,1768973483380,150.0,7.659e-05,2]
[402905456,1768973483805,150.0,8.024e-05,2]
[402905457,1768973484215,150.0,8.388e-05,2]
[402905458,1768973484630,150.0,8.753e-05,2]
[402905459,1768973552784,150.0,7.608e-05,2]
[402905460,1768973553223,150.0,7.97e-05,2]
[402905461,1768973553653,150.0,8.333e-05,2]
[402905462,1768973554069,150.0,8.695e-05,2]
[402905463,1768973620555,150.0,7.596e-05,2]
[402905464,1768973621180,150.0,7.958e-05,2]
[402905465,1768973621626,150.0,8.32e-05,2]
[402905466,1768973846054,5000.0,8.876e-05,2]
[402905467,1768973854167,4550.01,8.876e-05,2]
[402905468,1768973857008,-449.99,8.876e-05,2]
[402905469,1768973863013,5000.0,8.876e-05,2]
[402905470,1768973880541,5000.0,8.876e-05,2]
[402905471,1768973888381,5000.0,8.876e-05,2]
[402905472,1768973910995,5000.0,8.876e-05,2]
[402905473,1768973933167,5000.0,8.876e-05,2]
[402905474,1768973955260,5000.0,8.876e-05,2]
[402905475,1768973977378,5000.0,8.876e-05,2]
[402905476,1768974000505,5000.0,8.876e-05,2]
[402905477,1768974023066,5000.0,8.876e-05,2]
[402905478,1768974045146,5000.0,8.876e-05,2]
[402905479,1768974053506,170.63425009,8.876e-05,2]
[402905480,1768974069266,4213.16443089,8.876e-05,2]
[402905483,1768974418115,-175.73141254,9.023e-05,2]
[402905484,1768974449325,-370.26858746,9.023e-05,2]
[402905485,1768974449369,-5.55753112,9.046e-05,2]
[402905486,1768974546155,-227.93842858,0.00010046,2]
[402905487,1768974546176,-22.02470841,0.00012046,2]
[402905506,1768974631906,-246.94263731,0.00012046,2]
[402905507,1768974631915,-590.0,0.00012046,2]
[402905508,1768974631925,-78.73628282,0.00013,2]
[402905509,1768974631937,-421.35491098,0.00013,2]
[402905510,1768974631947,-703.38600263,0.00013,2]
[402905511,1768974631956,-300.0,0.00013272,2]
[402905512,1768974631966,-300.0,0.00013272,2]
[402905513,1768974631975,-1200.0,0.00013272,2]
[402905514,1768974631985,-376.28652911,0.00013273,2]
[402905515,1768974631994,-500.0,0.00013273,2]
[402905516,1768974632004,-398.68510635,0.00013273,2]
[402905518,1768974632013,-500.0,0.00013273,2]
[402905520,1768974632024,-500.0,0.00013273,2]
[402905521,1768974632034,-500.0,0.00013273,2]
[402905522,1768974632043,-500.0,0.00013273,2]
[402905523,1768974632053,-500.0,0.00013273,2]
[402905526,1768974632062,-500.0,0.00013273,2]
[402905528,1768974632072,-500.0,0.00013273,2]
[402905530,1768974632081,-500.0,0.00013273,2]
[402905531,1768974632090,-500.0,0.00013273,2]
[402905533,1768974632099,-500.0,0.00013273,2]
[402905535,1768974632108,-500.0,0.00013273,2]
[402905537,1768974632117,-500.0,0.00013273,2]
[402905539,1768974632127,-500.0,0.00013273,2]
[402905541,1768974632136,-500.0,0.00013273,2]
[402905543,1768974632145,-500.0,0.00013273,2]
[402905545,1768974632154,-500.0,0.00013273,2]
[402905547,1768974632163,-501.8100445,0.00013273,2]
[402905549,1768974632172,-500.0,0.00013273,2]
[402905551,1768974632181,-500.0,0.00013273,2]
[402905553,1768974632191,-80.59263429,0.00013273,2]
[402905757,1768974637969,-419.40736571,0.00013273,2]
[402905758,1768974637979,-500.0,0.00013273,2]
[402905759,1768974637988,-300.0,0.00013673,2]
[402905760,1768974637997,-500.0,0.00013698,2]
[402905761,1768974638008,-500.0,0.00013698,2]
[402905762,1768974638017,-500.0,0.00013698,2]
[402905763,1768974638027,-500.0,0.00013698,2]
[402905764,1768974638037,-500.0,0.00013699,2]
[402905765,1768974638056,-1000.0,0.00013821,2]
[402905766,1768974638068,-309.99626286,0.00014046,2]
[402905767,1768974638078,-356.05366925,0.00014246,2]
[402905769,1768974638088,-522.67391565,0.00014246,2]
[402905771,1768974638099,-484.96408568,0.00014246,2]
[402905772,1768974638109,-1000.0,0.00014247,2]
[402905773,1768974638119,-3700.8840392,0.00014276,2]
[402905774,1768974638129,-1500.0,0.00014368,2]
[402905775,1768974638139,-420.0,0.00014551,2]
[402905776,1768974638150,-691.2189,0.00014795,2]
[402905777,1768974638160,-538.928378,0.0001499,2]
[402905778,1768974638171,-327.43647992,0.00015,2]
[402905786,1768974640320,-172.56352008,0.00015,2]
[402905788,1768974640330,-178.71,0.00015069,2]
[402905789,1768974640340,-302.29,0.00015069,2]
[402905790,1768974640350,-3247.59647992,0.00015334,2]
[402905809,1768974644750,-19.5257125,0.00015334,2]
[402905812,1768974646453,-2655.21786313,0.00015334,2]
[402905813,1768974646462,-351.5118497,0.00015335,2]
[402905814,1768974646472,-377.72612991,0.00015335,2]
[402905815,1768974646481,-5610.0885149,0.00015336,2]
[402905816,1768974647063,-41.75845762,0.0001532,2]
[402905823,1768975148546,2898.67,8.876e-05,2]
[402905829,1768975753105,-500.0,0.00011509,2]
[402905830,1768975753125,-582.0,0.00011509,2]
[402905831,1768975753146,-239.90775555,0.00011789,2]
[402905832,1768975753165,-300.0,0.00012728,2]
[402905833,1768975753184,-1294.01109239,0.00012979,2]
[402905834,1768975756117,-719.62592381,0.00012979,2]
[402905835,1768975756138,-300.0,0.00013272,2]
[402905836,1768975756158,-500.0,0.00013273,2]
[402905837,1768975756177,-500.0,0.00013273,2]
[402905838,1768975756196,-162.12288025,0.00013273,2]
[402905839,1768975762104,-337.87711975,0.00013273,2]
[402905840,1768975762126,-500.0,0.00013273,2]
[402905841,1768975762146,-230.46949765,0.00013273,2]
[402905842,1768975762166,-166.08754188,0.00013273,2]
[402905843,1768975762185,-500.0,0.00013273,2]
[402905844,1768975762204,-500.0,0.00013273,2]
[402905845,1768975762225,-500.0,0.00013273,2]
[402905846,1768975762247,-500.0,0.00013273,2]
[402905847,1768975762265,-154.81140965,0.00013273,2]
[402905848,1768975762284,-500.0,0.00013273,2]
[402905849,1768975762304,-500.0,0.00013273,2]
[402905850,1768975762323,-284.74191732,0.00013273,2]
[402905851,1768975762342,-500.0,0.00013273,2]
[402905852,1768975762361,-619.04418379,0.00013273,2]
[402905853,1768975762379,-3360.3719959,0.00013273,2]
[402905854,1768975762400,-500.0,0.00013273,2]
[402905855,1768975762418,-500.0,0.00013273,2]
[402905856,1768975762437,-500.0,0.00013273,2]
[402905857,1768975762457,-500.0,0.00013273,2]
[402905858,1768975762477,-500.0,0.00013273,2]
[402905859,1768975762496,-500.0,0.00013273,2]
[402905860,1768975762516,-157.15125967,0.00013273,2]
[402906114,1768975838097,-342.84874033,0.00013273,2]
[402906116,1768975838108,-500.0,0.00013273,2]
[402906118,1768975838118,-500.0,0.00013273,2]
[402906120,1768975838127,-500.0,0.00013273,2]
[402906122,1768975838137,-235.10960043,0.00013273,2]
[402906123,1768975838147,-608.0,0.00013273,2]
[402906125,1768975838157,-244.77146257,0.00013425,2]
[402906128,1768975838166,-528.0,0.00013425,2]
[402906130,1768975838175,-528.0,0.00013562,2]
[402906132,1768975838184,-300.0,0.00013673,2]
[402906133,1768975838193,-178.2623255,0.00013698,2]
[402906136,1768975838203,-241.832,0.00013698,2]
[402906137,1768975838212,-300.0,0.00013698,2]
[402906140,1768975838221,-1000.0,0.00013699,2]
[402906142,1768975838231,-500.0,0.00013699,2]
[402906145,1768975838241,-500.0,0.00013699,2]
[402906147,1768975838250,-500.0,0.00013699,2]
[402906149,1768975838260,-500.0,0.00013699,2]
[402906150,1768975838269,-500.0,0.00013699,2]
[402906151,1768975838279,-500.0,0.00013699,2]
[402906152,1768975838288,-414.0095491,0.00013699,2]
[402906154,1768975838298,-500.0,0.00013699,2]
[402906155,1768975838308,-500.0,0.00013699,2]
[402906156,1768975838318,-500.0,0.00013699,2]
[402906157,1768975838328,-500.0,0.00013699,2]
[402906158,1768975838338,-500.0,0.00013699,2]
[402906159,1768975838347,-500.0,0.00013699,2]
[402906160,1768975838356,-500.25020701,0.00013699,2]
[402906161,1768975838366,-500.0,0.00013699,2]
[402906162,1768975838375,-500.0,0.00013699,2]
[402906163,1768975838385,-500.0,0.00013699,2]
[402906164,1768975838394,-500.0,0.00013699,2]
[402906165,1768975838404,-500.0,0.00013699,2]
[402906166,1768975838413,-500.0,0.00013699,2]
[402906167,1768975838423,-500.0,0.00013699,2]
[402906168,1768975838434,-500.0,0.00013699,2]
[402906169,1768975838444,-500.0,0.00013699,2]
[402906170,1768975838454,-500.0,0.00013699,2]
[402906171,1768975838469,-500.0,0.00013699,2]
[402906172,1768975838490,-506.80810154,0.00013699,2]
[402906173,1768975838509,-302.11570847,0.00013699,2]
[402906174,1768975838520,-500.0,0.00013699,2]
[402906175,1768975838530,-371.29740831,0.00013699,2]
[402906176,1768975838539,-500.0,0.00013699,2]
[402906177,1768975838549,-500.0,0.00013699,2]
[402906178,1768975838559,-500.0,0.00013699,2]
[402906179,1768975838568,-500.0,0.00013699,2]
[402906180,1768975838577,-500.43009045,0.00013699,2]
[402906181,1768975838587,-500.0,0.00013699,2]
[402906182,1768975838596,-500.0,0.00013699,2]
[402906183,1768975838606,-500.0,0.00013699,2]
[402906184,1768975838617,-158.69373269,0.00013699,2]
[402906185,1768975838626,-500.0,0.00013699,2]
[402906186,1768975838635,-500.0,0.00013699,2]
[402906187,1768975838645,-500.0,0.00013699,2]
[402906188,1768975838654,-528.0,0.00013699,2]
[402906189,1768975838664,-1000.0,0.00013821,2]
[402906190,1768975838675,-163.34818571,0.00013821,2]
[402906191,1768975838684,-1000.0,0.00013821,2]
[402906192,1768975838694,-233.5150793,0.00013821,2]
[402906193,1768975838706,-507.5711708,0.00013821,2]
[402906194,1768975838715,-1000.0,0.00013821,2]
[402906195,1768975838725,-38.0270478,0.00013821,2]
[402906196,1768975838737,-541.086,0.00013821,2]
[402906197,1768975838759,-420.8869522,0.00013821,2]
[402906198,1768975838768,-242.24087903,0.00013821,2]
[402906200,1768975840297,-757.75912097,0.00013821,2]
[402906201,1768975840306,-1000.0,0.00013821,2]
[402906203,1768975840315,-528.0,0.00013836,2]
[402906205,1768975840324,-150.22349183,0.00013973,2]
[402906206,1768975840334,-528.0,0.00013973,2]
[402906207,1768975840343,-4861.37751158,0.00013976,2]
[402906208,1768975840352,-15030.07054951,0.00014076,2]
[402906209,1768975840362,-213.935158,0.00014076,2]
[402906210,1768975840371,-151.0,0.000141,2]
[402906211,1768975840381,-151.0,0.000141,2]
[402906212,1768975840390,-151.0,0.000141,2]
[402906213,1768975840399,-528.0,0.0001411,2]
[402906214,1768975840409,-151.0,0.000142,2]
[402906215,1768975840418,-151.0,0.000142,2]
[402906216,1768975840428,-600.0,0.00014221,2]
[402906217,1768975840444,-246.05829479,0.00014246,2]
[402906218,1768975840454,-219.78842985,0.00014246,2]
[402906219,1768975840464,-409.13135883,0.00014246,2]
[402906220,1768975840474,-500.0,0.00014246,2]
[402906221,1768975840484,-500.0,0.00014246,2]
[402906222,1768975840494,-1000.0,0.00014247,2]
[402906223,1768975840504,-827.60308577,0.00014247,2]
[402906224,1768975840513,-1000.0,0.00014247,2]
[402906225,1768975840522,-1000.0,0.00014247,2]
[402906226,1768975840532,-1000.0,0.00014247,2]
[402906227,1768975840541,-1000.0,0.00014247,2]
[402906228,1768975840551,-1000.0,0.00014247,2]
[402906229,1768975840560,-528.0,0.00014247,2]
[402906230,1768975840570,-1285.690972,0.0001433,2]
[402906231,1768975840579,-1010.0350149,0.0001433,2]
[402906232,1768975840588,-629.15735953,0.00014368,2]
[402906233,1768975840597,-1500.0,0.00014368,2]
[402906234,1768975840606,-1500.0,0.00014368,2]
[402906235,1768975840616,-1500.0,0.00014368,2]
[402906236,1768975840625,-1500.0,0.00014368,2]
[402906237,1768975840635,-1500.0,0.00014368,2]
[402906238,1768975840645,-528.0,0.00014384,2]
[402906239,1768975840654,-216.00803309,0.00014521,2]
[402906240,1768975840667,-311.99196691,0.00014521,2]
[402906241,1768975840676,-528.0,0.00014658,2]
[402906242,1768975840685,-900.0,0.00014768,2]
[402906243,1768975840694,-1500.0,0.00014795,2]
[402906244,1768975840704,-1500.0,0.00014795,2]
[402906245,1768975840713,-1500.0,0.00014795,2]
[402906246,1768975840725,-1227.8345611,0.00014795,2]
[402906267,1768975846217,-275.48378278,0.00014795,2]
[402906268,1768975846228,-1500.0,0.00014795,2]
[402906269,1768975846237,-528.0,0.00014795,2]
[402906270,1768975846247,-179.6082393,0.000149,2]
[402906271,1768975846257,-2000.0,0.00014916,2]
[402906272,1768975846267,-2000.0,0.00014916,2]
[402906273,1768975846277,-2000.0,0.00014916,2]
[402906274,1768975846287,-2000.0,0.00014916,2]
[402906275,1768975846296,-2000.0,0.00014916,2]
[402906276,1768975846306,-528.0,0.00014932,2]
[402906277,1768975846316,-660.33675155,0.00014939,2]
[402906278,1768975846326,-420.0,0.00015011,2]
[402906279,1768975846335,-528.0,0.00015069,2]
[402906280,1768975846344,-528.0,0.00015206,2]
[402906281,1768975846354,-277.42932851,0.00015273,2]
[402906282,1768975846363,-1200.0,0.00015316,2]
[402906283,1768975846373,-500.0,0.00015334,2]
[402906284,1768975846383,-500.0,0.00015334,2]
[402906285,1768975846392,-500.0,0.00015335,2]
[402906286,1768975846402,-500.0,0.00015335,2]
[402906287,1768975846411,-500.0,0.00015335,2]
[402906288,1768975846421,-500.0,0.00015335,2]
[402906289,1768975846430,-500.0,0.00015335,2]
[402906290,1768975846440,-500.0,0.00015335,2]
[402906291,1768975846449,-500.0,0.00015335,2]
[402906292,1768975846459,-500.0,0.00015335,2]
[402906293,1768975846468,-500.0,0.00015335,2]
[402906294,1768975846479,-500.0,0.00015335,2]
[402906295,1768975846490,-500.0,0.00015335,2]
[402906296,1768975846500,-500.0,0.00015335,2]
[402906297,1768975846509,-500.0,0.00015335,2]
[402906298,1768975846520,-500.0,0.00015335,2]
[402906299,1768975846529,-337.14067419,0.00015335,2]
[402906300,1768975846539,-2000.0,0.00015342,2]
[402906301,1768975846548,-2000.0,0.00015342,2]
[402906302,1768975846558,-2032.95025226,0.00015342,2]
[402906303,1768975846567,-2000.0,0.00015342,2]